[Event "1.FrauenBL 2016-17"]
[Site "Berlin"]
[Date "2017.04.29"]
[Round "11"]
[White "Muetsch, Annmarie"]
[Black "Roos, Kseniya"]
[Result "1-0"]
[ECO "B15"]
[WhiteElo "2108"]
[BlackElo "2205"]
[Annotator "NA"]
[PlyCount "69"]
[EventDate "2017.??.??"]
[EventType "team-tourn"]
[EventCountry "GER"]
[SourceTitle "playchess.com"]
[Source "ChessBase"]
[SourceQuality "1"]
[WhiteTeam "SK Schwäbisch Hall"]
[BlackTeam "FC Bayern München"]
[TimeControl "40/6000+30:3000+30"]

1. e4 {[%emt 1:30:27]} g6 {[%emt 1:30:06]} 2. d4 {[%emt 1:30:06]} Bg7 {[%emt 1:30:27]} 3. Nc3 {[%emt 1:31:05]} c6 {[%emt 1:30:46]} 4. f4 {[%emt 1:31:11]} d5 {[%emt 1:25:52]} 5. e5 {[%emt 1:28:03]} h5 {[%emt 1:28:03]} 6. Bd3 {[%emt 1:26:11]} Nh6 {[%emt 1:25:08]} 7. Nf3 {[%emt 1:25:07] B15: Caro-Kann: 3 Nc3: 3...g6 and 3...dxe4 4 Nxe4 Nf6 5 Nxf6+ exf6} Nf5 {[%emt 1:16:52]} 8. O-O {[%emt 1:20:54]} b6 $146 {[%emt 1:20:54]} (8... Qb6 9. Na4 Qa5 10. c3 e6 11. Ng5 Nd7 12. Bd2 Qc7 13. Bxf5 gxf5 14. Rf3 Nf8 {1-0 (23) Rios,E (2150)-Li Torres,M (2380) Cienfuegos 1996}) 9. Ne2 {[%emt 1:17:29]} O-O {[%emt 0:57:51]} 10. Bxf5 {[%emt 0:57:51]} Bxf5 {[%emt 1:11:30]} 11. Ng3 {[%emt 0:55:26]} e6 {[%emt 0:46:13]} 12. Nxf5 {[%emt 0:46:13]} exf5 {[%emt 0:46:21]} 13. Re1 {[%emt 0:46:21]} Re8 {[%emt 0:42:12]} 14. h3 {[%emt 0:57:43]} Nd7 {[%emt 0:41:00]} 15. Nh2 {[%emt 0:41:00]} Nf8 {[%emt 0:29:53]} 16. Be3 {[%emt 0:40:16]} Ne6 {[%emt 0:29:54]} 17. c3 {[%emt 0:36:30]} Rc8 {[%emt 0:29:57]} 18. Qf3 {[%emt 0:33:39]} Qh4 {[%emt 0:24:11]} 19. Re2 {[%emt 0:29:04]} Bh6 {[%emt 0:22:18]} 20. g4 {[%emt 0:28:49]} Kh7 {[%emt 0:15:20]} 21. g5 {[%emt 0:25:06]} Bf8 {[%emt 0:08:15]} 22. Rf1 {[%emt 0:20:08]} c5 {[%emt 0:07:02] [#]} 23. Qg2 $1 {[%emt 0:15:55]} cxd4 $18 {[%emt 0:06:39]} 24. cxd4 {[%emt 0:16:19]} Rc4 {[%emt 0:16:19]} 25. Nf3 {[%emt 0:16:21]} Nxf4 {[%emt 0:05:59]} 26. Nxh4 {[%emt 0:16:45]} Nxg2 {[%emt 0:06:10]} 27. Nxg2 {[%emt 0:17:02]} Rec8 {[%emt 0:05:59]} 28. Nf4 {[%emt 0:17:23]} Rc2 {[%emt 0:04:41]} 29. Rff2 {[%emt 0:04:41]} R2c4 {[%emt 0:17:37]} 30. Nxd5 {[%emt 0:17:44]} b5 {[%emt 0:01:57]} 31. Nf6+ {[%emt 0:17:51]} Kg7 {[%emt 0:02:24]} 32. d5 {[%emt 0:02:24]} Bb4 {[%emt 0:01:44]} 33. d6 {[%emt 0:17:19]} a6 {[%emt 0:00:38]} 34. d7 {[%emt 0:17:35]} Rd8 {[%emt 0:01:07]} 35. Bb6 {[%emt 0:17:55]} 1-0

[Event "1.FrauenBL 2016-17"]
[Site "Berlin"]
[Date "2017.04.29"]
[Round "11"]
[White "Brandt, Carina"]
[Black "Schulze, Lara"]
[Result "0-1"]
[ECO "C18"]
[WhiteElo "2045"]
[BlackElo "2157"]
[Annotator "NA"]
[PlyCount "76"]
[EventDate "2017.??.??"]
[EventType "team-tourn"]
[EventCountry "GER"]
[SourceTitle "playchess.com"]
[Source "ChessBase"]
[SourceQuality "1"]
[WhiteTeam "TuRa Harksheide"]
[BlackTeam "SK Lehrte"]
[TimeControl "40/6000+30:3000+30"]

1. e4 {[%emt 1:30:30]} e6 {[%emt 1:30:29]} 2. d4 {[%emt 1:30:46]} d5 {[%emt 1:30:56]} 3. Nc3 {[%emt 1:31:08]} Bb4 {[%emt 1:31:22]} 4. e5 {[%emt 1:31:30]} c5 {[%emt 1:31:47]} 5. a3 {[%emt 1:31:47]} Bxc3+ {[%emt 1:32:14]} 6. bxc3 {[%emt 1:32:17]} Ne7 {[%emt 1:32:17]} 7. Qg4 {[%emt 1:32:38]} Qc7 {[%emt 1:32:40]} 8. Qxg7 {[%emt 1:33:01]} Rg8 {[%emt 1:33:01]} 9. Qxh7 {[%emt 1:33:28]} cxd4 {[%emt 1:33:56]} 10. Ne2 {[%emt 1:33:56]} Nbc6 {[%emt 1:34:19]} 11. f4 {[%emt 1:34:19]} dxc3 {[%emt 1:34:38]} 12. Qd3 {[%emt 1:34:38]} Bd7 {[%emt 1:34:59]} 13. Rg1 {[%emt 1:31:09] C18: French: 3 Nc3 Bb4: Main line: 7 h4 and 7 Qg4} (13. Be3 Na5 14. g3 Nf5 15. Bf2 Nc4 16. Bh3 d4 17. Bxf5 exf5 18. Bxd4 O-O-O 19. Qxc3 b6 20. Kf2 Kb8 21. a4 {1-0 (55) Duda,J (2603)-Vitiugov,N (2738) Wroclaw 2014}) 13... O-O-O {[%emt 1:29:40]} 14. Nxc3 {[%emt 1:22:43]} Qb6 {[%emt 1:22:43]} 15. Rh1 $146 {[%emt 1:14:54]} (15. Be3 d4 16. Rb1 Qa5 17. Qb5 Qxb5 18. Nxb5 dxe3 19. Nd6+ Kb8 20. Nxb7 Kc7 21. Nxd8 Rxd8 {0-1 (35) Nardelli,M (2132)-Pulito,A (2254) Nichelino 2008}) 15... a6 {[%emt 1:06:27]} 16. Bd2 {[%emt 1:06:27]} Na5 {[%emt 1:01:57]} 17. Rb1 {[%emt 1:01:57]} Qc7 $1 {[%emt 0:57:25]} 18. Qf3 {[%emt 0:36:13]} Bc6 {[%emt 0:44:01]} ({Not} 18... d4 19. Ne4 $16) 19. Bd3 {[%emt 0:34:48]} Nc4 {[%emt 0:42:45]} 20. Qe2 {[%emt 0:32:43]} Nf5 {[%emt 0:39:26]} ({Much less strong is} 20... Nxa3 21. Rb3 Nc4 22. Rg1 $17) 21. Bxf5 {[%emt 0:28:56]} exf5 {[%emt 0:39:48]} 22. Rg1 {[%emt 0:28:26]} Nxa3 {[%emt 0:36:35]} 23. Rb2 {[%emt 0:36:35]} d4 {[%emt 0:35:24]} 24. Na2 {[%emt 0:18:26]} Bb5 {[%emt 0:26:22]} 25. Qd1 {[%emt 0:11:51]} Ba4 {[%emt 0:20:10]} 26. Bb4 {[%emt 0:20:10]} (26. Qc1 $142 Nxc2+ 27. Kf2) 26... Nc4 {[%emt 0:13:35]} 27. Qc1 {[%emt 0:09:03]} Nxb2 {[%emt 0:07:26]} 28. Qxb2 {[%emt 0:09:30]} Qc6 {[%emt 0:06:26]} 29. c4 {[%emt 0:05:19]} dxc3 {[%emt 0:03:33]} 30. Nxc3 {[%emt 0:05:34]} Kb8 $19 {[%emt 0:00:57]} 31. Bd6+ {[%emt 0:04:42]} Ka8 {[%emt 0:01:03]} 32. Kf2 {[%emt 0:04:27]} Qc4 {[%emt 0:04:27]} 33. Rb1 {[%emt 0:03:43]} Qxf4+ {[%emt 0:00:57]} 34. Kg1 {[%emt 0:04:06]} Bc6 {[%emt 0:00:55]} 35. g3 {[%emt 0:02:16]} Qe3+ {[%emt 0:00:47]} 36. Kf1 {[%emt 0:02:44]} f4 {[%emt 0:00:17]} 37. Nb5 {[%emt 0:01:23]} Qd3+ {[%emt 0:00:13]} 38. Ke1 {[%emt 0:01:19]} Bxb5 {[%emt 0:00:18]} 0-1

[Event "1.FrauenBL 2016-17"]
[Site "Berlin"]
[Date "2017.04.29"]
[Round "11.1"]
[White "Richterova, Natasa"]
[Black "Fuchs, Judith"]
[Result "1/2-1/2"]
[ECO "A34"]
[WhiteElo "2210"]
[BlackElo "2274"]
[Annotator "ChessBase"]
[PlyCount "72"]
[EventDate "2017.??.??"]
[EventType "team-tourn"]
[EventCountry "GER"]
[SourceTitle "playchess.com"]
[Source "ChessBase"]
[SourceQuality "1"]
[WhiteTeam "SV Medizin Erfurt"]
[BlackTeam "Hamburger SK"]
[TimeControl "40/6000+30:3000+30"]

1. Nf3 {[%emt 1:30:20]} Nf6 {[%emt 1:30:19]} 2. c4 {[%emt 1:30:19]} c5 {[%emt 1:29:46]} 3. Nc3 {[%emt 1:27:37]} b6 {[%emt 1:29:55]} 4. e4 {[%emt 1:24:13]} d6 {[%emt 1:29:19]} 5. d4 {[%emt 1:29:19]} cxd4 {[%emt 1:29:22]} 6. Nxd4 {[%emt 1:29:22]} Bb7 {[%emt 1:23:34]} 7. Bd3 {[%emt 1:19:03]} g6 {[%emt 1:26:43]} 8. Be3 {[%emt 1:16:32]} Bg7 {[%emt 1:16:32]} 9. Rc1 {[%emt 1:13:50]} O-O {[%emt 1:26:07]} 10. O-O {[%emt 1:13:20]} Nc6 {[%emt 1:25:52]} 11. Nxc6 {[%emt 1:03:16]} Bxc6 {[%emt 1:26:11]} 12. h3 {[%emt 1:26:11]} Nd7 {[%emt 1:22:31]} 13. Qd2 {[%emt 0:56:18]} Rc8 {[%emt 0:56:18]} 14. Bh6 {[%emt 1:09:04]} Bb7 {[%emt 1:04:07]} 15. Bxg7 {[%emt 0:49:25]} Kxg7 {[%emt 1:04:34]} 16. b3 {[%emt 0:48:59]} Re8 {[%emt 0:59:54]} 17. Rfd1 {[%emt 0:48:04]} Nc5 {[%emt 0:53:37]} 18. Bb1 {[%emt 0:44:49]} Qc7 {[%emt 0:44:49]} 19. h4 {[%emt 0:39:26]} h5 {[%emt 0:42:08]} 20. Qd4+ {[%emt 0:36:01]} Kg8 {[%emt 0:39:27]} 21. Qe3 {[%emt 0:36:04]} Kg7 {[%emt 0:32:36]} 22. Nb5 {[%emt 0:30:06]} Qb8 {[%emt 0:32:29]} 23. Nd4 {[%emt 0:27:35]} Rg8 {[%emt 0:27:07]} 24. f3 {[%emt 0:23:19]} e5 {[%emt 0:23:44]} 25. Ne2 {[%emt 0:22:02]} Rge8 {[%emt 0:21:45]} 26. Rc2 {[%emt 0:21:45]} Rcd8 {[%emt 0:19:29]} 27. Rcd2 {[%emt 0:17:12]} Bc6 {[%emt 0:13:50]} 28. a4 {[%emt 0:13:51]} Qc7 {[%emt 0:12:48]} 29. Bc2 {[%emt 0:12:08]} Qe7 {[%emt 0:12:29]} 30. g3 {[%emt 0:12:26]} a5 {[%emt 0:09:44]} 31. Kh2 {[%emt 0:11:21]} Rf8 {[%emt 0:08:07]} 32. Re1 {[%emt 0:06:24]} Qb7 {[%emt 0:06:24]} 33. Rf1 {[%emt 0:06:03]} Qe7 {[%emt 0:06:03]} 34. Re1 {[%emt 0:05:53]} Qb7 {[%emt 0:05:26]} 35. Red1 {[%emt 0:05:51]} Qe7 {[%emt 0:05:11]} 36. Re1 {[%emt 0:06:12]} Qb7 {[%emt 0:03:24]} 1/2-1/2

[Event "1.FrauenBL 2016-17"]
[Site "Berlin"]
[Date "2017.04.29"]
[Round "11.1"]
[White "Amelang, Astrid"]
[Black "Jelica, Mara"]
[Result "0-1"]
[ECO "A03"]
[WhiteElo "2116"]
[BlackElo "2108"]
[Annotator "NA"]
[PlyCount "176"]
[EventDate "2017.??.??"]
[EventType "team-tourn"]
[EventCountry "GER"]
[SourceTitle "playchess.com"]
[Source "ChessBase"]
[SourceQuality "1"]
[WhiteTeam "SG Augsburg"]
[BlackTeam "SF Deizisau"]
[TimeControl "40/6000+30:3000+30"]

1. f4 {[%emt 1:30:26]} d5 {[%emt 1:30:19]} 2. Nf3 {[%emt 1:30:50]} c5 {[%emt 1:30:40]} 3. b3 {[%emt 1:30:58]} Nc6 {[%emt 1:30:08]} 4. Bb2 {[%emt 1:31:17]} Nf6 {[%emt 1:31:17]} 5. e3 {[%emt 1:31:21]} Bg4 {[%emt 1:28:35]} 6. Bb5 {[%emt 1:27:06]} Rc8 {[%emt 1:25:12] A03: Bird's Opening with 1...d5} 7. O-O {[%emt 1:25:12]} e6 {[%emt 1:23:13]} 8. h3 {[%emt 1:18:58]} Bxf3 {[%emt 1:21:01]} 9. Qxf3 {[%emt 1:16:45]} Be7 {[%emt 1:21:17]} ({Relevant:} 9... a6 10. Bxc6+ Rxc6 11. d3 Be7 12. Nd2 O-O 13. Qe2 {1-0 (40) Cabarkapa,N (2413)-Sekulic,D (2218) Kac 2016}) 10. d3 {[%emt 1:21:17]} O-O {[%emt 1:15:07]} 11. Bxc6 {[%emt 1:11:58]} Rxc6 {[%emt 1:19:32]} 12. Nd2 {[%emt 1:10:23]} Qb6 $146 {[%emt 1:11:47]} ({Predecessor (2):} 12... Ne8 13. e4 c4 14. dxc4 dxc4 {1-0 (40) Nothnagel,M (2255)-August,C (2137) Germany 2009}) 13. Qe2 {[%emt 0:56:03]} Nd7 {[%emt 1:08:19]} 14. c4 {[%emt 0:53:52]} Bf6 {[%emt 1:07:15]} 15. Bxf6 {[%emt 0:53:47]} Nxf6 {[%emt 1:07:30]} 16. e4 {[%emt 0:41:00]} Rd8 {[%emt 0:41:00]} 17. e5 {[%emt 0:59:23]} Ne8 {[%emt 0:57:26]} 18. Nf3 {[%emt 0:57:26]} Rc7 {[%emt 0:52:42]} 19. Rfd1 {[%emt 0:30:08]} Rcd7 {[%emt 0:52:18]} 20. Rac1 {[%emt 0:19:03]} Nc7 {[%emt 0:49:38]} 21. Rd2 {[%emt 0:14:17]} Na6 {[%emt 0:49:24]} 22. Rcd1 {[%emt 0:12:28]} Nb4 {[%emt 0:48:35]} 23. Kf1 {[%emt 0:10:51]} Nc6 {[%emt 0:48:36]} 24. Ke1 {[%emt 0:09:09]} Ne7 {[%emt 0:46:21]} 25. g4 {[%emt 0:07:42]} Qa5 {[%emt 0:45:13]} 26. Kf2 {[%emt 0:03:42]} Qb6 {[%emt 0:45:08]} 27. Qe3 {[%emt 0:45:08]} Nc6 {[%emt 0:43:47]} 28. Ke1 {[%emt 0:03:49]} Ne7 {[%emt 0:36:26]} 29. Kf2 {[%emt 0:03:39]} Rf8 {[%emt 0:35:55]} 30. Kg3 {[%emt 0:02:28]} Rdd8 {[%emt 0:34:35]} 31. Re1 {[%emt 0:02:22]} Qc7 {[%emt 0:33:14]} 32. Ng5 {[%emt 0:01:22]} h6 {[%emt 0:32:32]} 33. Nf3 {[%emt 0:01:50]} b6 {[%emt 0:28:18]} 34. Rf2 {[%emt 0:02:06]} Rd7 {[%emt 0:02:06]} 35. Rd2 {[%emt 0:02:27]} Rfd8 {[%emt 0:25:46]} 36. Red1 {[%emt 0:02:29]} a6 {[%emt 0:24:18]} 37. Qe2 {[%emt 0:01:19]} Rf8 {[%emt 0:21:06]} 38. Rf1 {[%emt 0:01:15]} Nc6 {[%emt 0:20:37]} 39. Re1 {[%emt 0:20:37]} Qd8 {[%emt 0:01:08]} 40. Qe3 {[%emt 0:00:30]} Ne7 {[%emt 0:16:25]} 41. Red1 {[%emt 0:25:04]} Qa8 {[%emt 0:40:53]} 42. Qe2 {[%emt 0:21:54]} Ng6 {[%emt 0:38:41]} 43. f5 {[%emt 0:16:09]} exf5 {[%emt 0:31:05]} 44. gxf5 {[%emt 0:16:28]} Ne7 {[%emt 0:30:33]} 45. f6 {[%emt 0:30:33]} Nf5+ {[%emt 0:24:41]} 46. Kh2 {[%emt 0:09:44]} g6 {[%emt 0:09:44]} 47. e6 {[%emt 0:07:54]} Qb8+ {[%emt 0:07:54]} 48. Qe5 {[%emt 0:07:41]} fxe6 {[%emt 0:12:19]} 49. Qxb8 {[%emt 0:06:51]} Rxb8 {[%emt 0:06:51]} 50. Ne5 {[%emt 0:06:52]} Rd6 {[%emt 0:06:52]} 51. Rg1 {[%emt 0:05:38]} g5 {[%emt 0:05:38]} 52. Rf2 {[%emt 0:04:32]} dxc4 {[%emt 0:04:32]} 53. dxc4 {[%emt 0:02:54]} Rf8 {[%emt 0:08:30]} 54. f7+ {[%emt 0:01:27]} Kg7 {[%emt 0:08:47]} 55. Re2 $1 $11 {[%emt 0:01:43]} Nh4 {[%emt 0:01:43]} 56. Rf2 {[%emt 0:06:48]} Nf5 {[%emt 0:01:27]} 57. Re1 {[%emt 0:01:12]} Rfd8 {[%emt 0:01:12]} 58. Rfe2 {[%emt 0:01:24]} Nh4 {[%emt 0:04:43]} 59. Kg3 {[%emt 0:01:39]} Ng6 {[%emt 0:01:39]} 60. Nxg6 {[%emt 0:01:51]} Kxg6 {[%emt 0:04:55]} 61. Rxe6+ {[%emt 0:02:06]} Kxf7 {[%emt 0:05:18]} 62. Re7+ {[%emt 0:01:37]} Kf6 {[%emt 0:04:50]} 63. R7e2 {[%emt 0:01:26]} Rd3+ {[%emt 0:01:26]} 64. Kg2 {[%emt 0:01:44]} Rd2 {[%emt 0:05:12]} 65. Rf1+ {[%emt 0:01:45]} Kg6 {[%emt 0:05:33]} 66. Rff2 {[%emt 0:01:58]} Rxe2 {[%emt 0:05:50]} 67. Rxe2 {[%emt 0:02:22]} Rd6 {[%emt 0:06:11]} 68. Kg3 {[%emt 0:01:40]} Rd3+ {[%emt 0:01:40]} 69. Kg2 {[%emt 0:06:11]} Kf5 {[%emt 0:06:03]} 70. Rf2+ {[%emt 0:02:15]} Ke5 {[%emt 0:06:09]} 71. Re2+ {[%emt 0:02:24]} Kd6 {[%emt 0:02:24]} 72. Rf2 {[%emt 0:01:55]} Re3 {[%emt 0:04:56]} 73. Rf6+ {[%emt 0:01:31]} Re6 {[%emt 0:05:24]} 74. Rf2 {[%emt 0:01:54]} b5 {[%emt 0:05:43]} 75. Rd2+ {[%emt 0:01:48]} Kc6 {[%emt 0:06:05]} 76. cxb5+ {[%emt 0:06:05]} axb5 {[%emt 0:05:44]} 77. Kf3 {[%emt 0:02:09]} c4 {[%emt 0:05:47]} 78. bxc4 {[%emt 0:01:58]} bxc4 {[%emt 0:01:58]} 79. Rc2 {[%emt 0:02:12]} Kc5 {[%emt 0:06:27]} 80. a3 {[%emt 0:00:53]} Kd4 {[%emt 0:06:38]} 81. Rd2+ {[%emt 0:01:07]} Kc3 {[%emt 0:06:46]} 82. Rd7 {[%emt 0:06:46]} Kb2 {[%emt 0:01:25]} 83. Rc7 {[%emt 0:01:02]} c3 {[%emt 0:05:01]} 84. a4 {[%emt 0:01:00]} Ra6 $19 {[%emt 0:03:43]} 85. Rb7+ {[%emt 0:01:00]} Kc1 {[%emt 0:03:38]} 86. Rb4 {[%emt 0:00:57]} c2 {[%emt 0:03:25]} 87. Ke2 {[%emt 0:01:16]} Re6+ {[%emt 0:01:16]} 88. Kf2 {[%emt 0:00:46]} Kd2 {[%emt 0:03:57]} 0-1

[Event "1.FrauenBL 2016-17"]
[Site "Berlin"]
[Date "2017.04.29"]
[Round "11.1"]
[White "Duessler, Stefanie"]
[Black "Sherif, Amina"]
[Result "1/2-1/2"]
[ECO "B15"]
[WhiteElo "2086"]
[BlackElo "2003"]
[Annotator "NA"]
[PlyCount "115"]
[EventDate "2017.??.??"]
[EventType "team-tourn"]
[EventCountry "GER"]
[SourceTitle "playchess.com"]
[Source "ChessBase"]
[SourceQuality "1"]
[WhiteTeam "SK Lehrte"]
[BlackTeam "TuRa Harksheide"]
[TimeControl "40/6000+30:3000+30"]

1. e4 {[%emt 1:30:27]} g6 {[%emt 1:30:14]} 2. d4 {[%emt 1:30:48]} Bg7 {[%emt 1:30:48]} 3. Nc3 {[%emt 1:31:08]} c6 {[%emt 1:29:35]} 4. Nf3 {[%emt 1:30:47]} d5 {[%emt 1:30:47]} 5. h3 {[%emt 1:28:28]} dxe4 {[%emt 1:28:48]} 6. Nxe4 {[%emt 1:28:48]} Nd7 {[%emt 1:28:52]} 7. Bc4 {[%emt 1:27:29]} Ngf6 {[%emt 1:28:38]} 8. Nxf6+ {[%emt 1:27:18]} Nxf6 {[%emt 1:28:49]} 9. O-O {[%emt 1:27:13]} O-O {[%emt 1:27:13]} 10. Re1 {[%emt 1:26:54]} b6 {[%emt 1:26:29]} 11. c3 {[%emt 1:25:22] B15: Caro-Kann: 3 Nc3: 3...g6 and 3...dxe4 4 Nxe4 Nf6 5 Nxf6+ exf6} ({Relevant:} 11. Ne5 Bb7 12. Bg5 Nd5 13. Bh4 Rc8 14. Qf3 g5 15. Bg3 e6 16. Bb3 Qf6 17. Qh5 Nf4 18. Bxf4 Qxf4 {½-½ (43) Leko,P (2737)-Kamsky,G (2763) Beijing 2013}) 11... Bb7 {[%emt 1:17:42]} 12. Bg5 {[%emt 1:17:42]} Qc7 {[%emt 1:08:32]} 13. Ne5 $146 {[%emt 1:08:32]} ({Predecessor (2):} 13. Qe2 e6 14. Ne5 Nd5 15. Bxd5 exd5 16. Ng4 f5 17. Nh6+ Kh8 18. Qe6 f4 {½-½ (50) Soskov,V (2291)-Burmakin,V (2574) Tallinn 2014}) 13... Nd5 {[%emt 0:56:22]} 14. Ng4 {[%emt 0:56:22]} e6 {[%emt 0:45:55]} 15. Bxd5 {[%emt 1:08:45]} cxd5 {[%emt 0:45:15]} 16. Bf6 {[%emt 1:08:58]} Bxf6 {[%emt 1:08:58]} 17. Nxf6+ {[%emt 1:09:10]} Kg7 {[%emt 0:42:41]} 18. Qf3 {[%emt 1:08:56]} Qe7 {[%emt 0:34:24]} 19. Ng4 $1 {[%emt 1:09:18]} ({Don't go for} 19. Nxd5 $2 Qd8 20. c4 exd5 $19) 19... b5 {[%emt 0:33:35]} (19... f6 $14) 20. Re3 {[%emt 1:08:31]} Rab8 {[%emt 1:08:31]} 21. Rae1 {[%emt 0:31:45]} Bc6 {[%emt 1:07:48]} 22. Qf4 {[%emt 1:00:00]} Rbe8 {[%emt 0:23:31]} (22... Bd7 $142 23. Qe5+ f6 24. Qxd5 Rfe8) 23. Ne5 {[%emt 0:50:47]} Bd7 {[%emt 0:21:57]} 24. Nd3 {[%emt 0:48:15]} Bc6 {[%emt 0:19:23]} 25. Nc5 {[%emt 0:41:42]} Rb8 {[%emt 0:18:02]} 26. a3 {[%emt 0:39:00]} a5 {[%emt 0:17:19]} 27. b4 {[%emt 0:38:51]} Ra8 {[%emt 0:38:51]} 28. h4 {[%emt 0:37:58]} h6 $2 {[%emt 0:15:39]} (28... axb4 $16 {keeps fighting.} 29. cxb4 (29. axb4 h5 $16) 29... h5) 29. h5 {[%emt 0:32:44]} g5 {[%emt 0:14:43]} 30. Qe5+ {[%emt 0:14:43]} Kh7 {[%emt 0:32:40]} 31. g4 {[%emt 0:29:41]} Ra7 {[%emt 0:13:06]} (31... axb4 $142 32. cxb4 (32. axb4 Ra7 $14) 32... Ra7) 32. Rf3 {[%emt 0:29:04]} axb4 {[%emt 0:11:33]} 33. cxb4 {[%emt 0:11:33]} Rfa8 {[%emt 0:11:20]} 34. Ree3 {[%emt 0:28:58]} Qc7 {[%emt 0:28:58]} 35. Qf6 {[%emt 0:28:12]} Qe7 {[%emt 0:28:12]} 36. Qxe7 {[%emt 0:23:28]} Rxe7 {[%emt 0:09:41]} 37. Rc3 {[%emt 0:23:47]} Be8 {[%emt 0:09:36]} 38. Nd3 {[%emt 0:20:43]} Rea7 {[%emt 0:05:43]} 39. Ne5 {[%emt 0:05:43]} Kg7 {[%emt 0:20:13]} 40. Rfe3 {[%emt 0:19:10]} Kf8 {[%emt 0:02:58]} 41. Kf1 {[%emt 0:17:12]} Ke7 {[%emt 0:23:46]} 42. Ke1 {[%emt 0:44:56]} Kd6 {[%emt 0:23:01]} 43. Rf3 {[%emt 0:23:01]} Ke7 {[%emt 0:22:58]} 44. Nc6+ {[%emt 0:26:19]} Bxc6 {[%emt 0:23:13]} 45. Rxc6 {[%emt 0:26:47]} Rxa3 {[%emt 0:19:20]} 46. Rc7+ {[%emt 0:19:20]} Kd6 {[%emt 0:14:55]} 47. Rfxf7 {[%emt 0:25:55]} Rd8 {[%emt 0:15:21]} 48. Rb7 {[%emt 0:24:33]} Kc6 {[%emt 0:15:29]} 49. Rfc7+ {[%emt 0:24:21]} Kd6 {[%emt 0:15:54]} 50. Rc2 {[%emt 0:21:05]} Rd3 {[%emt 0:11:50]} 51. Rb6+ {[%emt 0:21:18]} Ke7 {[%emt 0:09:45]} 52. Rd2 {[%emt 0:19:15]} Rxd2 {[%emt 0:08:40]} ({Black should play} 52... Rf3 $11) 53. Kxd2 {[%emt 0:19:37]} Ra8 {[%emt 0:09:05]} 54. Rxb5 {[%emt 0:19:00]} Ra2+ {[%emt 0:09:30]} 55. Ke3 {[%emt 0:19:22]} Ra3+ {[%emt 0:19:22]} 56. Ke2 {[%emt 0:19:50]} Ra2+ {[%emt 0:09:34]} 57. Kf3 {[%emt 0:20:12]} Ra3+ $11 {[%emt 0:20:12]} 58. Ke2 {[%emt 0:10:27]} 1/2-1/2

[Event "1.FrauenBL 2016-17"]
[Site "Berlin"]
[Date "2017.04.29"]
[Round "11.2"]
[White "Hoolt, Sarah"]
[Black "Troyke, Doreen"]
[Result "1-0"]
[ECO "B23"]
[WhiteElo "2398"]
[BlackElo "2091"]
[Annotator "NA"]
[PlyCount "87"]
[EventDate "2017.??.??"]
[EventType "team-tourn"]
[EventCountry "GER"]
[SourceTitle "playchess.com"]
[Source "ChessBase"]
[SourceQuality "1"]
[WhiteTeam "Hamburger SK"]
[BlackTeam "SV Medizin Erfurt"]
[TimeControl "40/6000+30:3000+30"]

1. e4 {[%emt 1:30:30]} c5 {[%emt 1:30:24]} 2. Nc3 {[%emt 1:30:24]} Nc6 {[%emt 1:30:43]} 3. Bb5 {[%emt 1:31:16]} g6 {[%emt 1:30:48]} 4. Bxc6 {[%emt 1:30:48]} dxc6 {[%emt 1:31:14]} 5. f4 {[%emt 1:31:52]} Bg7 {[%emt 1:31:28] B23: Closed Sicilian: Lines without g3} 6. d3 {[%emt 1:31:28]} (6. Nf3 h5 7. d3 Nh6 8. h3 O-O 9. O-O b5 10. Be3 c4 11. dxc4 Qxd1 12. Raxd1 bxc4 13. Ne5 {1-0 (34) Jovanovic,Z (2534)-Naiditsch,A (2687) Tallinn 2016}) 6... Nf6 {[%emt 1:31:23]} 7. Be3 {[%emt 1:31:40]} b6 {[%emt 1:30:33]} 8. h3 {[%emt 1:30:33]} Nd7 {[%emt 1:28:44]} 9. Nf3 {[%emt 1:29:13]} Qc7 {[%emt 1:25:53]} 10. Qd2 {[%emt 1:28:11]} Bb7 $146 {[%emt 1:25:17]} (10... a5 11. O-O O-O 12. f5 Ne5 13. Bh6 a4 14. Bxg7 Kxg7 {1-0 (40) Hoolt,S (2322)-Lubbe,N (2503) Lueneburg 2016}) 11. a4 {[%emt 1:28:16]} a5 {[%emt 1:22:37]} 12. O-O-O {[%emt 1:16:24]} O-O-O {[%emt 1:20:54]} 13. Ng5 {[%emt 1:11:23]} Rdf8 {[%emt 1:11:23]} 14. e5 {[%emt 1:01:48]} h6 {[%emt 1:11:18]} 15. Nf3 {[%emt 1:01:50]} Rd8 {[%emt 1:07:00]} 16. Rhe1 {[%emt 0:57:30]} Nf8 {[%emt 1:00:08]} 17. Qf2 {[%emt 1:00:08]} Kb8 {[%emt 0:50:01]} 18. d4 {[%emt 0:56:21]} cxd4 {[%emt 0:56:21]} 19. Nxd4 {[%emt 0:47:36]} Rc8 $2 {[%emt 0:41:32] [#]} (19... Nd7 20. Kb1 (20. e6 Nc5 $16) 20... Rhf8) 20. Nb3 $2 {[%emt 0:49:30]} (20. Ne6 $1 $18 {[%mdl 512] and White stays clearly on top.} Nxe6 (20... fxe6 21. Bxb6) 21. Bxb6) 20... c5 {[%emt 0:35:29]} 21. g4 {[%emt 0:39:54]} h5 {[%emt 0:30:46]} (21... Bc6 $16) 22. Nd5 {[%emt 0:35:41]} Bxd5 {[%emt 0:35:41]} 23. Rxd5 {[%emt 0:36:05]} Qc6 {[%emt 0:36:05]} 24. Red1 {[%emt 0:36:23]} Qxa4 {[%emt 0:23:50]} 25. Kb1 {[%emt 0:36:20]} hxg4 $2 {[%emt 0:20:28] [#]} (25... Ne6 $1 $14) 26. hxg4 $2 {[%emt 0:36:06]} ({White has to play} 26. Bxc5 $1 $18 {[%mdl 512]} bxc5 27. Rxc5) 26... Ne6 {[%emt 0:19:23]} 27. Qg3 {[%emt 0:19:23]} Qe4 {[%emt 0:12:55]} 28. Rd7 {[%emt 0:10:31]} g5 {[%emt 0:08:04]} 29. f5 {[%emt 0:06:05]} Nd4 {[%emt 0:06:02]} 30. Bxd4 {[%emt 0:05:17]} cxd4 {[%emt 0:06:13]} 31. Nxd4 {[%emt 0:06:13]} Bxe5 {[%emt 0:03:20]} 32. Qb3 {[%emt 0:05:14]} Bxd4 {[%emt 0:03:13]} 33. R1xd4 {[%emt 0:05:01]} Qc6 {[%emt 0:02:56]} 34. Rxe7 {[%emt 0:03:53]} Qc5 {[%emt 0:01:48]} 35. Rdd7 {[%emt 0:03:31]} Rc6 {[%emt 0:01:31]} 36. Rb7+ {[%emt 0:02:54]} Kc8 {[%emt 0:00:59]} 37. Ra7 {[%emt 0:03:03]} Kd8 {[%emt 0:01:06]} 38. Red7+ {[%emt 0:02:52]} (38. Qd3+ $142 Rd6 39. Rad7+ (39. Rxf7 Rxd3 40. Ra8+ Qc8 41. Rxc8+ Kxc8 $11) 39... Kc8 40. Qa6+ (40. Qxd6 $2 {perishes.} Rh1+ 41. Qd1 Rxd1+ 42. Rxd1 Qxe7 $19) 40... Kb8 41. Qb7#) 38... Kc8 {[%emt 0:01:14]} 39. Rxf7 {[%emt 0:03:15]} Kb8 {[%emt 0:00:36]} 40. Rfb7+ {[%emt 0:02:17]} Kc8 {[%emt 0:01:01]} 41. Rh7 {[%emt 0:01:01]} Kb8 $18 {[%emt 0:00:28]} 42. Qg3+ {[%emt 0:29:23]} Rd6 {[%emt 0:28:26]} 43. Rhb7+ {[%emt 0:28:26]} Kc8 {[%emt 0:29:11]} 44. Rc7+ {[%emt 0:28:42]} 1-0